[Event "*** Titled Tuesday Blitz"]
[Site "Chess.com"]
[Date "2021.03.02"]
[Round "9"]
[White "organdzievhren"]
[Black "Skatchkov_V"]
[Result "0-1"]
[WhiteElo "2447"]
[BlackElo "2620"]
[TimeControl "180+1"]
[EndTime "11:45:52 PST"]
[Termination "Skatchkov_V won by resignation"]

1. e4 {[%clk 0:03:00.9]} 1... e5 {[%clk 0:02:59.4]} 2. Nf3 {[%clk 0:02:59.4]}
2... d5 {[%clk 0:02:59.9]} 3. d4 {[%clk 0:02:58.2]} 3... dxe4 {[%clk 0:03:00.2]}
4. Nxe5 {[%clk 0:02:58.5]} 4... Bd6 {[%clk 0:03:00.4]} 5. Bf4 {[%clk 0:02:58.6]}
5... Nc6 {[%clk 0:03:00.2]} 6. Nxc6 {[%clk 0:02:57]} 6... bxc6 {[%clk 0:03:01]}
7. Bxd6 {[%clk 0:02:56.5]} 7... cxd6 {[%clk 0:03:01.9]} 8. Be2 {[%clk
0:02:56.3]} 8... d5 {[%clk 0:03:00.2]} 9. O-O {[%clk 0:02:56.3]} 9... Nf6 {[%clk
0:03:00.6]} 10. c4 {[%clk 0:02:56.2]} 10... O-O {[%clk 0:03:01.3]} 11. Nc3
{[%clk 0:02:56]} 11... Be6 {[%clk 0:02:59.6]} 12. cxd5 {[%clk 0:02:55]} 12...
cxd5 {[%clk 0:03:00.5]} 13. Qd2 {[%clk 0:02:51.1]} 13... Rb8 {[%clk 0:03:00.8]}
14. b3 {[%clk 0:02:49.8]} 14... Nd7 {[%clk 0:03:00.8]} 15. Na4 {[%clk
0:02:43.2]} 15... f5 {[%clk 0:02:59.5]} 16. f4 {[%clk 0:02:43.1]} 16... h6
{[%clk 0:02:48]} 17. Rac1 {[%clk 0:02:41.4]} 17... g5 {[%clk 0:02:48.1]} 18. Nc5
{[%clk 0:02:36.5]} 18... Nxc5 {[%clk 0:02:47.2]} 19. Rxc5 {[%clk 0:02:36.5]}
19... Qe7 {[%clk 0:02:37.1]} 20. Rfc1 {[%clk 0:02:34.4]} 20... Rfc8 {[%clk
0:02:37.3]} 21. Ba6 {[%clk 0:02:28.3]} 21... Rxc5 {[%clk 0:02:35.4]} 22. Rxc5
{[%clk 0:02:25]} 22... Qd6 {[%clk 0:02:35.3]} 23. fxg5 {[%clk 0:01:49.1]} 23...
Qxa6 {[%clk 0:02:34.5]} 24. gxh6 {[%clk 0:01:48.8]} 24... Bf7 {[%clk 0:02:35.4]}
25. Qf4 {[%clk 0:01:43.4]} 25... Rb6 {[%clk 0:02:29.2]} 26. Rc7 {[%clk
0:01:07.9]} 26... Rxh6 {[%clk 0:01:52.5]} 27. Qe5 {[%clk 0:00:40.3]} 27... Qf6
{[%clk 0:01:51.1]} 28. Qg3+ {[%clk 0:00:29.7]} 28... Rg6 {[%clk 0:01:51]} 29.
Qf2 {[%clk 0:00:21.4]} 29... f4 {[%clk 0:01:51.1]} 30. h3 {[%clk 0:00:18.3]}
30... e3 {[%clk 0:01:50.8]} 31. Qf3 {[%clk 0:00:18]} 31... Qxd4 {[%clk
0:01:50.1]} 32. Kh2 {[%clk 0:00:18.4]} 32... Rg3 {[%clk 0:01:48.4]} 33. Rc8+
{[%clk 0:00:16.1]} 33... Kg7 {[%clk 0:01:49]} 34. Qe2 {[%clk 0:00:14]} 34... Qe5
{[%clk 0:01:49.3]} 35. Kh1 {[%clk 0:00:08.3]} 35... f3 {[%clk 0:01:45.1]} 36.
gxf3 {[%clk 0:00:08.8]} 36... Qa1+ {[%clk 0:01:45.5]} 0-1

[Event "*** Titled Tuesday Blitz"]
[Site "Chess.com"]
[Date "2021.03.02"]
[Round "9"]
[White "wannabe2700"]
[Black "pastouche06"]
[Result "1-0"]
[WhiteElo "2708"]
[BlackElo "2546"]
[TimeControl "180+1"]
[EndTime "11:46:00 PST"]
[Termination "wannabe2700 won by resignation"]

1. b3 {[%clk 0:03:00.9]} 1... d5 {[%clk 0:02:58.7]} 2. Bb2 {[%clk 0:02:59.7]}
2... Bg4 {[%clk 0:02:58.3]} 3. f3 {[%clk 0:02:59]} 3... Bf5 {[%clk 0:02:56.6]}
4. e4 {[%clk 0:02:53.3]} 4... dxe4 {[%clk 0:02:53.5]} 5. Qe2 {[%clk 0:02:53.8]}
5... Nc6 {[%clk 0:02:31.1]} 6. fxe4 {[%clk 0:02:52.5]} 6... Bg6 {[%clk
0:02:26.9]} 7. Nf3 {[%clk 0:02:51.6]} 7... Nf6 {[%clk 0:02:16.1]} 8. Nc3 {[%clk
0:02:51.2]} 8... e5 {[%clk 0:02:09.9]} 9. O-O-O {[%clk 0:02:49.1]} 9... Bd6
{[%clk 0:01:43.9]} 10. h3 {[%clk 0:02:44.2]} 10... Nh5 {[%clk 0:01:18.5]} 11.
Qe3 {[%clk 0:02:40.4]} 11... Ng3 {[%clk 0:01:00.8]} 12. Rg1 {[%clk 0:02:39.8]}
12... Nxf1 {[%clk 0:01:00.9]} 13. Rgxf1 {[%clk 0:02:40.7]} 13... O-O {[%clk
0:00:58.1]} 14. g4 {[%clk 0:02:38.2]} 14... Re8 {[%clk 0:00:52.9]} 15. h4 {[%clk
0:02:36.9]} 15... f6 {[%clk 0:00:50.7]} 16. h5 {[%clk 0:02:36.2]} 16... Bf7
{[%clk 0:00:50.8]} 17. Nh4 {[%clk 0:02:25.6]} 17... Nd4 {[%clk 0:00:42.9]} 18.
Nf5 {[%clk 0:02:24.2]} 18... Ne6 {[%clk 0:00:41.5]} 19. Ne2 {[%clk 0:02:06.1]}
19... Bc5 {[%clk 0:00:40.4]} 20. d4 {[%clk 0:02:02.1]} 20... exd4 {[%clk
0:00:39.9]} 21. Nexd4 {[%clk 0:01:55.6]} 21... Qc8 {[%clk 0:00:36.2]} 22. h6
{[%clk 0:01:50.7]} 22... g6 {[%clk 0:00:31.1]} 23. Ng3 {[%clk 0:01:50.5]} 23...
Ng5 {[%clk 0:00:08.9]} 24. Rxf6 {[%clk 0:01:43.3]} 24... Qxg4 {[%clk 0:00:08.9]}
25. Rf4 {[%clk 0:01:39.4]} 25... Qh3 {[%clk 0:00:09.1]} 26. Qc3 {[%clk 0:01:36]}
26... Bd6 {[%clk 0:00:04.1]} 27. Ne6 {[%clk 0:01:14]} 27... Be5 {[%clk
0:00:03.7]} 28. Qxe5 {[%clk 0:01:11.3]} 1-0

[Event "*** Titled Tuesday Blitz"]
[Site "Chess.com"]
[Date "2021.03.02"]
[Round "9"]
[White "QuintilianoR"]
[Black "Shuvalov"]
[Result "1-0"]
[WhiteElo "2696"]
[BlackElo "2544"]
[TimeControl "180+1"]
[EndTime "11:46:01 PST"]
[Termination "QuintilianoR won by resignation"]

1. d4 {[%clk 0:03:00.9]} 1... Nf6 {[%clk 0:02:50.9]} 2. c4 {[%clk 0:03:01.1]}
2... g6 {[%clk 0:02:47.5]} 3. Nf3 {[%clk 0:03:01.4]} 3... Bg7 {[%clk 0:02:46.8]}
4. Nc3 {[%clk 0:03:01.8]} 4... d5 {[%clk 0:02:46.8]} 5. cxd5 {[%clk 0:03:01.1]}
5... Nxd5 {[%clk 0:02:47.7]} 6. e4 {[%clk 0:03:01.7]} 6... Nxc3 {[%clk
0:02:47.4]} 7. bxc3 {[%clk 0:03:02.6]} 7... c5 {[%clk 0:02:48.2]} 8. h3 {[%clk
0:03:02.2]} 8... O-O {[%clk 0:02:46]} 9. Be2 {[%clk 0:03:01.7]} 9... Nc6 {[%clk
0:02:43]} 10. Be3 {[%clk 0:03:01]} 10... Qa5 {[%clk 0:02:41.5]} 11. Bd2 {[%clk
0:03:01.2]} 11... Rd8 {[%clk 0:02:36.9]} 12. O-O {[%clk 0:02:59.7]} 12... Qc7
{[%clk 0:02:23.6]} 13. d5 {[%clk 0:02:51.2]} 13... Na5 {[%clk 0:02:19.8]} 14. c4
{[%clk 0:02:45.1]} 14... Bxa1 {[%clk 0:02:07.4]} 15. Qxa1 {[%clk 0:02:46]} 15...
f6 {[%clk 0:02:07.7]} 16. e5 {[%clk 0:02:37.5]} 16... b5 {[%clk 0:01:18]} 17.
Bxa5 {[%clk 0:02:31.8]} 17... Qxa5 {[%clk 0:01:17.2]} 18. exf6 {[%clk
0:02:31.8]} 18... exf6 {[%clk 0:01:14.7]} 19. Qxf6 {[%clk 0:02:28.5]} 19... Qb6
{[%clk 0:01:14.4]} 20. Qh4 {[%clk 0:02:22.9]} 20... b4 {[%clk 0:01:04.1]} 21.
Ng5 {[%clk 0:02:19.6]} 21... Rd7 {[%clk 0:01:03.3]} 22. Ne4 {[%clk 0:02:15.8]}
22... Kg7 {[%clk 0:01:00.1]} 23. Qg5 {[%clk 0:02:10.2]} 23... Rf7 {[%clk
0:00:54.6]} 24. Qe5+ {[%clk 0:02:08.8]} 24... Kg8 {[%clk 0:00:51.6]} 25. Nd6
{[%clk 0:02:05.3]} 25... Bf5 {[%clk 0:00:44]} 26. Nxf7 {[%clk 0:02:04.2]} 26...
Kxf7 {[%clk 0:00:44.9]} 27. Bf3 {[%clk 0:01:49.7]} 27... Re8 {[%clk 0:00:42.4]}
28. Qf4 {[%clk 0:01:49.5]} 28... Kg7 {[%clk 0:00:38.8]} 29. d6 {[%clk
0:01:34.1]} 29... a5 {[%clk 0:00:37.2]} 30. Rd1 {[%clk 0:01:30.5]} 30... Bd7
{[%clk 0:00:34.4]} 31. Bd5 {[%clk 0:01:16]} 31... Rf8 {[%clk 0:00:29.5]} 32.
Qe5+ {[%clk 0:01:15.6]} 32... Kh6 {[%clk 0:00:23.5]} 33. Qe3+ {[%clk 0:01:10.8]}
33... Kg7 {[%clk 0:00:23]} 34. Qe7+ {[%clk 0:01:09.5]} 1-0

[Event "*** Titled Tuesday Blitz"]
[Site "Chess.com"]
[Date "2021.03.02"]
[Round "9"]
[White "CakeinSpace2002"]
[Black "mhebden"]
[Result "1-0"]
[WhiteElo "2426"]
[BlackElo "2523"]
[TimeControl "180+1"]
[EndTime "11:46:02 PST"]
[Termination "CakeinSpace2002 won by resignation"]

1. e4 {[%clk 0:03:00.9]} 1... e5 {[%clk 0:02:59.2]} 2. Nf3 {[%clk 0:03:01]} 2...
Nc6 {[%clk 0:02:59.8]} 3. Bb5 {[%clk 0:03:01.2]} 3... a6 {[%clk 0:02:59.8]} 4.
Ba4 {[%clk 0:03:01.4]} 4... Nf6 {[%clk 0:02:59.9]} 5. O-O {[%clk 0:03:01.8]}
5... Be7 {[%clk 0:02:59.9]} 6. Re1 {[%clk 0:03:01.3]} 6... b5 {[%clk 0:02:59.4]}
7. Bb3 {[%clk 0:03:01.2]} 7... O-O {[%clk 0:02:59.9]} 8. d3 {[%clk 0:03:01.3]}
8... d6 {[%clk 0:02:55.9]} 9. c3 {[%clk 0:03:00.1]} 9... Na5 {[%clk 0:02:55]}
10. Bc2 {[%clk 0:02:59.6]} 10... c5 {[%clk 0:02:55.5]} 11. Nbd2 {[%clk
0:02:58.7]} 11... Re8 {[%clk 0:02:55.8]} 12. Nf1 {[%clk 0:02:58.5]} 12... h6
{[%clk 0:02:54.6]} 13. h3 {[%clk 0:02:58.1]} 13... Bf8 {[%clk 0:02:53.1]} 14. g4
{[%clk 0:02:57.9]} 14... d5 {[%clk 0:02:46.6]} 15. Qe2 {[%clk 0:02:54]} 15... c4
{[%clk 0:02:41.7]} 16. Ng3 {[%clk 0:02:50.3]} 16... cxd3 {[%clk 0:02:27.3]} 17.
Bxd3 {[%clk 0:02:51]} 17... Bb7 {[%clk 0:02:25.3]} 18. g5 {[%clk 0:02:40.7]}
18... dxe4 {[%clk 0:02:24]} 19. Nxe4 {[%clk 0:02:37.8]} 19... Nxe4 {[%clk
0:02:18.1]} 20. Bxe4 {[%clk 0:02:37.1]} 20... Qd7 {[%clk 0:02:02]} 21. Kh2
{[%clk 0:02:33.4]} 21... Rad8 {[%clk 0:01:28.9]} 22. gxh6 {[%clk 0:02:13.7]}
22... Bxe4 {[%clk 0:01:26.4]} 23. Qxe4 {[%clk 0:02:07.4]} 23... f5 {[%clk
0:01:25.9]} 24. Qh4 {[%clk 0:02:02.9]} 24... e4 {[%clk 0:01:22.6]} 25. Ng5
{[%clk 0:02:00.9]} 25... gxh6 {[%clk 0:01:20.9]} 26. Rg1 {[%clk 0:02:00]} 26...
Kh8 {[%clk 0:01:16]} 27. Bf4 {[%clk 0:01:54.3]} 27... Nc4 {[%clk 0:01:12.7]} 28.
Rad1 {[%clk 0:01:41.2]} 28... Qe7 {[%clk 0:00:57.5]} 29. Rxd8 {[%clk 0:01:36.6]}
29... Rxd8 {[%clk 0:00:56.7]} 30. Nf7+ {[%clk 0:01:35.1]} 30... Kh7 {[%clk
0:00:55.1]} 31. Qh5 {[%clk 0:01:20.1]} 31... Qf6 {[%clk 0:00:26.6]} 32. Nxd8
{[%clk 0:01:09.8]} 1-0

[Event "*** Titled Tuesday Blitz"]
[Site "Chess.com"]
[Date "2021.03.02"]
[Round "9"]
[White "Enriquack"]
[Black "Zemerovv"]
[Result "0-1"]
[WhiteElo "2445"]
[BlackElo "2312"]
[TimeControl "180+1"]
[EndTime "11:46:04 PST"]
[Termination "Zemerovv won by resignation"]

1. e4 {[%clk 0:03:00.9]} 1... g6 {[%clk 0:02:59.8]} 2. d4 {[%clk 0:02:59.3]}
2... Bg7 {[%clk 0:03:00.7]} 3. Nf3 {[%clk 0:02:58.8]} 3... d6 {[%clk 0:03:00.7]}
4. Bc4 {[%clk 0:02:58.7]} 4... e6 {[%clk 0:02:59.5]} 5. O-O {[%clk 0:02:57]}
5... Ne7 {[%clk 0:02:59.4]} 6. Re1 {[%clk 0:02:49.9]} 6... a6 {[%clk 0:02:58.8]}
7. Bb3 {[%clk 0:02:48.5]} 7... b6 {[%clk 0:02:57]} 8. Nbd2 {[%clk 0:02:25]} 8...
Nd7 {[%clk 0:02:56.5]} 9. Nf1 {[%clk 0:02:24.8]} 9... Bb7 {[%clk 0:02:54.6]} 10.
c3 {[%clk 0:02:22.4]} 10... h6 {[%clk 0:02:52.6]} 11. Ng3 {[%clk 0:02:21.6]}
11... b5 {[%clk 0:02:46.5]} 12. a4 {[%clk 0:02:18.7]} 12... Nb6 {[%clk
0:02:43.8]} 13. a5 {[%clk 0:02:08.3]} 13... Nd7 {[%clk 0:02:38.9]} 14. Be3
{[%clk 0:02:04.8]} 14... c5 {[%clk 0:02:33]} 15. Qd2 {[%clk 0:02:00.8]} 15... c4
{[%clk 0:02:31.4]} 16. Bc2 {[%clk 0:01:59.9]} 16... e5 {[%clk 0:02:30.7]} 17. h3
{[%clk 0:01:51.8]} 17... Qc7 {[%clk 0:02:29.5]} 18. Red1 {[%clk 0:01:36.1]}
18... Rd8 {[%clk 0:02:26.4]} 19. h4 {[%clk 0:01:26.8]} 19... h5 {[%clk
0:02:11.1]} 20. Ng5 {[%clk 0:01:23.7]} 20... Nf6 {[%clk 0:02:06.5]} 21. f4
{[%clk 0:01:14.8]} 21... Ng4 {[%clk 0:01:54.4]} 22. fxe5 {[%clk 0:01:10.7]}
22... Nxe3 {[%clk 0:01:53]} 23. Qxe3 {[%clk 0:01:09.7]} 23... dxe5 {[%clk
0:01:52.4]} 24. d5 {[%clk 0:01:08.7]} 24... O-O {[%clk 0:01:47.8]} 25. Rf1
{[%clk 0:01:07.3]} 25... Nc8 {[%clk 0:01:46.4]} 26. Rf2 {[%clk 0:00:57.3]} 26...
Nd6 {[%clk 0:01:45.3]} 27. Nf1 {[%clk 0:00:36.2]} 27... Bc8 {[%clk 0:01:42.6]}
28. Nd2 {[%clk 0:00:35]} 28... Bh6 {[%clk 0:01:38.4]} 29. Qg3 {[%clk 0:00:31]}
29... Rde8 {[%clk 0:01:26.5]} 30. Raf1 {[%clk 0:00:27.4]} 30... Bg4 {[%clk
0:01:24]} 31. Ndf3 {[%clk 0:00:20.4]} 31... Qe7 {[%clk 0:01:19.9]} 32. Nh3
{[%clk 0:00:16.3]} 32... Be3 {[%clk 0:01:17]} 33. Kh2 {[%clk 0:00:15.2]} 33...
Bxf2 {[%clk 0:01:16.4]} 34. Nxf2 {[%clk 0:00:16.1]} 34... f5 {[%clk 0:01:14.1]}
35. Ng5 {[%clk 0:00:15.3]} 35... f4 {[%clk 0:01:13.1]} 0-1

[Event "*** Titled Tuesday Blitz"]
[Site "Chess.com"]
[Date "2021.03.02"]
[Round "9"]
[White "Kildepiotr"]
[Black "RaphCamora"]
[Result "1/2-1/2"]
[WhiteElo "2582"]
[BlackElo "2394"]
[TimeControl "180+1"]
[EndTime "11:46:05 PST"]
[Termination "Game drawn by repetition"]

1. Nf3 {[%clk 0:03:00.9]} 1... Nf6 {[%clk 0:02:59.2]} 2. g3 {[%clk 0:03:00.7]}
2... d5 {[%clk 0:02:58.3]} 3. Bg2 {[%clk 0:03:01.2]} 3... c5 {[%clk 0:02:55.4]}
4. O-O {[%clk 0:03:01.1]} 4... Nc6 {[%clk 0:02:55.1]} 5. d3 {[%clk 0:03:01.3]}
5... e5 {[%clk 0:02:54.3]} 6. Nbd2 {[%clk 0:03:01.2]} 6... h6 {[%clk 0:02:51.3]}
7. e4 {[%clk 0:03:01.1]} 7... d4 {[%clk 0:02:51.3]} 8. Nc4 {[%clk 0:03:00.2]}
8... Qc7 {[%clk 0:02:46.1]} 9. a4 {[%clk 0:03:00]} 9... Be6 {[%clk 0:02:45.7]}
10. Ne1 {[%clk 0:02:59.8]} 10... g5 {[%clk 0:02:37.8]} 11. f4 {[%clk 0:02:58.2]}
11... gxf4 {[%clk 0:02:37.7]} 12. gxf4 {[%clk 0:02:59]} 12... Rg8 {[%clk
0:02:38]} 13. Nxe5 {[%clk 0:02:47.6]} 13... Nxe5 {[%clk 0:02:36.9]} 14. fxe5
{[%clk 0:02:47.9]} 14... Nd7 {[%clk 0:02:37.5]} 15. Bf4 {[%clk 0:02:46.9]} 15...
Bg7 {[%clk 0:02:36.3]} 16. Nf3 {[%clk 0:02:36.5]} 16... O-O-O {[%clk 0:02:29.3]}
17. Kh1 {[%clk 0:02:32.2]} 17... Bg4 {[%clk 0:02:22.8]} 18. Qd2 {[%clk
0:02:26.7]} 18... Bxf3 {[%clk 0:02:21.2]} 19. Rxf3 {[%clk 0:02:25.9]} 19... Nxe5
{[%clk 0:02:21.2]} 20. Bh3+ {[%clk 0:02:22.4]} 20... Kb8 {[%clk 0:02:20.8]} 21.
Rg3 {[%clk 0:02:22.5]} 21... Bh8 {[%clk 0:02:16.1]} 22. Rag1 {[%clk 0:02:20.8]}
22... Rxg3 {[%clk 0:02:14.9]} 23. Bxg3 {[%clk 0:02:18]} 23... Ka8 {[%clk
0:02:14]} 24. Qxh6 {[%clk 0:02:17.3]} 24... Qa5 {[%clk 0:01:30]} 25. Qh5 {[%clk
0:02:02.5]} 25... Ng6 {[%clk 0:01:13.7]} 26. Rf1 {[%clk 0:01:52.3]} 26... Be5
{[%clk 0:01:04.5]} 27. Bxe5 {[%clk 0:01:50.6]} 27... c4 {[%clk 0:00:58.9]} 28.
Rf5 {[%clk 0:01:35.9]} 28... Nxe5 {[%clk 0:00:46.2]} 29. Rxe5 {[%clk 0:01:35.7]}
29... Qe1+ {[%clk 0:00:43.4]} 30. Kg2 {[%clk 0:01:35.5]} 30... Rg8+ {[%clk
0:00:43.5]} 31. Bg4 {[%clk 0:01:32.1]} 31... Qe2+ {[%clk 0:00:39.4]} 32. Kh3
{[%clk 0:01:30]} 32... Qf1+ {[%clk 0:00:39.5]} 33. Kg3 {[%clk 0:01:21.4]} 33...
Qe1+ {[%clk 0:00:17.6]} 34. Kg2 {[%clk 0:01:17.4]} 34... Qe2+ {[%clk 0:00:17.2]}
35. Kh3 {[%clk 0:01:16.1]} 35... Qf1+ {[%clk 0:00:17.2]} 36. Kh4 {[%clk
0:01:15.1]} 36... Qf2+ {[%clk 0:00:17]} 37. Kh3 {[%clk 0:01:15.3]} 37... Qf1+
{[%clk 0:00:17.3]} 1/2-1/2

[Event "*** Titled Tuesday Blitz"]
[Site "Chess.com"]
[Date "2021.03.02"]
[Round "9"]
[White "heyjohnnypark"]
[Black "LileKoridze"]
[Result "1/2-1/2"]
[WhiteElo "2607"]
[BlackElo "2438"]
[TimeControl "180+1"]
[EndTime "11:46:08 PST"]
[Termination "Game drawn by agreement"]

1. e4 {[%clk 0:03:00.9]} 1... c5 {[%clk 0:02:59.9]} 2. c3 {[%clk 0:03:00.1]}
2... Nf6 {[%clk 0:02:59.1]} 3. e5 {[%clk 0:02:59.3]} 3... Nd5 {[%clk 0:02:58.6]}
4. Nf3 {[%clk 0:02:59.8]} 4... Nc6 {[%clk 0:02:55]} 5. Bc4 {[%clk 0:02:56.4]}
5... Nb6 {[%clk 0:02:55]} 6. Bb3 {[%clk 0:02:52.5]} 6... d5 {[%clk 0:02:53.8]}
7. exd6 {[%clk 0:02:48.4]} 7... Qxd6 {[%clk 0:02:53.7]} 8. O-O {[%clk
0:02:48.5]} 8... e6 {[%clk 0:02:53.1]} 9. d4 {[%clk 0:02:43.5]} 9... cxd4 {[%clk
0:02:51.8]} 10. Nxd4 {[%clk 0:02:42.2]} 10... Nxd4 {[%clk 0:02:51.9]} 11. cxd4
{[%clk 0:02:41.9]} 11... Be7 {[%clk 0:02:51.6]} 12. Nc3 {[%clk 0:02:41.8]} 12...
O-O {[%clk 0:02:50.1]} 13. d5 {[%clk 0:02:33.8]} 13... exd5 {[%clk 0:02:48.9]}
14. Nxd5 {[%clk 0:02:33.7]} 14... Nxd5 {[%clk 0:02:49.3]} 15. Bxd5 {[%clk
0:02:22.5]} 15... Rd8 {[%clk 0:02:48.2]} 16. Qe2 {[%clk 0:01:50.9]} 16... Qxd5
{[%clk 0:02:19.4]} 17. Qxe7 {[%clk 0:01:49.9]} 17... Be6 {[%clk 0:01:59.3]} 18.
Be3 {[%clk 0:01:39.4]} 18... b6 {[%clk 0:01:54.1]} 19. a3 {[%clk 0:01:28.8]}
19... Qb3 {[%clk 0:01:21.2]} 20. Rac1 {[%clk 0:01:03]} 20... Qxb2 {[%clk
0:00:53.9]} 21. Rc7 {[%clk 0:01:02.5]} 21... Re8 {[%clk 0:00:48.8]} 22. Rxa7
{[%clk 0:00:56.1]} 22... h6 {[%clk 0:00:43.9]} 23. Rxa8 {[%clk 0:00:44.7]} 23...
Rxa8 {[%clk 0:00:43.1]} 24. Qd6 {[%clk 0:00:28.6]} 24... Qxa3 {[%clk 0:00:37.6]}
25. Qxa3 {[%clk 0:00:24.9]} 25... Rxa3 {[%clk 0:00:37.1]} 26. Bxb6 {[%clk
0:00:25.6]} 1/2-1/2

[Event "*** Titled Tuesday Blitz"]
[Site "Chess.com"]
[Date "2021.03.02"]
[Round "9"]
[White "Shahaliyev"]
[Black "zacachess"]
[Result "1-0"]
[WhiteElo "2689"]
[BlackElo "2432"]
[TimeControl "180+1"]
[EndTime "11:46:12 PST"]
[Termination "Shahaliyev won by resignation"]

1. e4 {[%clk 0:03:00.9]} 1... e6 {[%clk 0:02:57.6]} 2. Qe2 {[%clk 0:02:59.3]}
2... e5 {[%clk 0:02:52.8]} 3. f4 {[%clk 0:02:58.4]} 3... d6 {[%clk 0:02:46.3]}
4. Nf3 {[%clk 0:02:58.2]} 4... Nf6 {[%clk 0:02:45.5]} 5. fxe5 {[%clk 0:02:54.2]}
5... dxe5 {[%clk 0:02:44.1]} 6. Nxe5 {[%clk 0:02:51.5]} 6... Qd4 {[%clk
0:02:32.5]} 7. Nf3 {[%clk 0:02:44.5]} 7... Qxe4 {[%clk 0:02:32.5]} 8. Nc3 {[%clk
0:02:44.1]} 8... Qxe2+ {[%clk 0:02:30.1]} 9. Bxe2 {[%clk 0:02:45]} 9... c6
{[%clk 0:02:23.6]} 10. d3 {[%clk 0:02:39]} 10... Be7 {[%clk 0:02:14.3]} 11. Bd2
{[%clk 0:02:36.2]} 11... O-O {[%clk 0:02:13.9]} 12. O-O-O {[%clk 0:02:36.6]}
12... Bf5 {[%clk 0:01:53.2]} 13. Nd4 {[%clk 0:02:33.5]} 13... Bg6 {[%clk
0:01:49.6]} 14. Rhf1 {[%clk 0:02:33]} 14... Nbd7 {[%clk 0:01:48.1]} 15. Nf5
{[%clk 0:02:33.3]} 15... Rfe8 {[%clk 0:01:46.2]} 16. Nxe7+ {[%clk 0:02:33.2]}
16... Rxe7 {[%clk 0:01:47.1]} 17. Bf3 {[%clk 0:02:33.7]} 17... Ne5 {[%clk
0:01:41.1]} 18. Bg5 {[%clk 0:02:32.3]} 18... Re6 {[%clk 0:01:37.7]} 19. Be2
{[%clk 0:02:29.8]} 19... Nd5 {[%clk 0:01:23.4]} 20. Nxd5 {[%clk 0:02:20.3]}
20... cxd5 {[%clk 0:01:24.3]} 21. Rde1 {[%clk 0:02:17.1]} 21... Rc6 {[%clk
0:01:10.4]} 22. Kd2 {[%clk 0:02:15.6]} 22... Rac8 {[%clk 0:01:05.5]} 23. Bd1
{[%clk 0:02:15.6]} 23... f6 {[%clk 0:01:04.8]} 24. Bf4 {[%clk 0:02:15.7]} 24...
Nf7 {[%clk 0:00:47.8]} 25. Re7 {[%clk 0:02:12.2]} 25... Rb6 {[%clk 0:00:41.7]}
26. Rfe1 {[%clk 0:02:09.8]} 26... Kf8 {[%clk 0:00:40.4]} 27. Bg4 {[%clk
0:01:54.6]} 27... f5 {[%clk 0:00:37.4]} 28. Bd1 {[%clk 0:01:44.2]} 28... Rxb2
{[%clk 0:00:37.3]} 29. Rd7 {[%clk 0:01:43.8]} 29... Rd8 {[%clk 0:00:23.8]} 30.
Rc7 {[%clk 0:01:41.1]} 30... Re8 {[%clk 0:00:17.4]} 31. Be3 {[%clk 0:01:32.4]}
31... b6 {[%clk 0:00:14.6]} 32. Rxa7 {[%clk 0:01:31.8]} 32... Nd6 {[%clk
0:00:10.2]} 33. Bf4 {[%clk 0:01:28.2]} 33... Nf7 {[%clk 0:00:08.2]} 34. Be3
{[%clk 0:01:21]} 34... Nd6 {[%clk 0:00:07.5]} 35. Bd4 {[%clk 0:01:20.9]} 35...
Nf7 {[%clk 0:00:06.8]} 36. Bxb2 {[%clk 0:01:19.8]} 1-0

[Event "*** Titled Tuesday Blitz"]
[Site "Chess.com"]
[Date "2021.03.02"]
[Round "9"]
[White "rachidhuilda"]
[Black "cukin84"]
[Result "1/2-1/2"]
[WhiteElo "2288"]
[BlackElo "2147"]
[TimeControl "180+1"]
[EndTime "11:46:17 PST"]
[Termination "Game drawn by agreement"]

1. d4 {[%clk 0:02:55.9]} 1... f5 {[%clk 0:02:59.3]} 2. g3 {[%clk 0:02:49.5]}
2... Nf6 {[%clk 0:02:58.6]} 3. Bg2 {[%clk 0:02:47.7]} 3... g6 {[%clk 0:02:58.3]}
4. c4 {[%clk 0:02:47.2]} 4... Bg7 {[%clk 0:02:57.7]} 5. Nc3 {[%clk 0:02:47.6]}
5... O-O {[%clk 0:02:57.1]} 6. Nh3 {[%clk 0:02:48.1]} 6... d6 {[%clk 0:02:56]}
7. d5 {[%clk 0:02:47.7]} 7... a5 {[%clk 0:02:54.7]} 8. Nf4 {[%clk 0:02:47.5]}
8... Na6 {[%clk 0:02:54.9]} 9. O-O {[%clk 0:02:47]} 9... Rb8 {[%clk 0:02:50.4]}
10. Be3 {[%clk 0:02:45.6]} 10... g5 {[%clk 0:02:47.6]} 11. Nd3 {[%clk
0:02:44.7]} 11... h6 {[%clk 0:02:46.4]} 12. Bd4 {[%clk 0:02:37.6]} 12... c5
{[%clk 0:02:43.9]} 13. dxc6 {[%clk 0:02:37.2]} 13... bxc6 {[%clk 0:02:43.5]} 14.
b3 {[%clk 0:02:33.9]} 14... c5 {[%clk 0:02:38.4]} 15. Bxf6 {[%clk 0:01:49.3]}
15... Bxf6 {[%clk 0:02:37.7]} 16. Rc1 {[%clk 0:01:49.8]} 16... Nb4 {[%clk
0:02:36.1]} 17. Nxb4 {[%clk 0:01:42.6]} 17... axb4 {[%clk 0:02:34.9]} 18. Nd5
{[%clk 0:01:41.9]} 18... Bg7 {[%clk 0:02:33.2]} 19. e4 {[%clk 0:01:41.8]} 19...
f4 {[%clk 0:02:30.7]} 20. gxf4 {[%clk 0:01:00.1]} 20... gxf4 {[%clk 0:02:29.2]}
21. e5 {[%clk 0:00:37.5]} 21... e6 {[%clk 0:02:14.1]} 22. Nf6+ {[%clk
0:00:36.1]} 22... Bxf6 {[%clk 0:02:10.9]} 23. exf6 {[%clk 0:00:36.4]} 23... Rxf6
{[%clk 0:02:10.6]} 24. Kh1 {[%clk 0:00:35.8]} 24... Rg6 {[%clk 0:01:53.8]} 25.
Be4 {[%clk 0:00:35.8]} 25... Bb7 {[%clk 0:01:50.2]} 26. Qf3 {[%clk 0:00:33.1]}
26... Qc7 {[%clk 0:01:38.5]} 27. Rg1 {[%clk 0:00:30.3]} 27... Rg5 {[%clk
0:01:31.2]} 28. h4 {[%clk 0:00:30.5]} 28... Rxg1+ {[%clk 0:01:20.9]} 29. Rxg1+
{[%clk 0:00:29.8]} 29... Kh8 {[%clk 0:01:21.1]} 30. Qxf4 {[%clk 0:00:28.6]}
30... Bxe4+ {[%clk 0:01:19]} 31. Qxe4 {[%clk 0:00:28.8]} 31... Qb7 {[%clk
0:01:19.2]} 32. Qxb7 {[%clk 0:00:25.3]} 32... Rxb7 {[%clk 0:01:19.4]} 33. Rg6
{[%clk 0:00:25.9]} 33... Ra7 {[%clk 0:01:17.7]} 34. Rxh6+ {[%clk 0:00:23.5]}
34... Kg7 {[%clk 0:01:18]} 35. Rxe6 {[%clk 0:00:23.9]} 35... Rxa2 {[%clk
0:01:18]} 36. Rxd6 {[%clk 0:00:23.9]} 36... Rxf2 {[%clk 0:01:18]} 37. Rd5 {[%clk
0:00:20.2]} 37... Rb2 {[%clk 0:01:17.8]} 38. Rxc5 {[%clk 0:00:19.5]} 38... Rxb3
{[%clk 0:01:18.1]} 39. Kg2 {[%clk 0:00:19]} 39... Rc3 {[%clk 0:01:16.4]} 1/2-1/2